Cogmind - Beta 14 @@@ ROGUE MODE // 2024.10.04 @ 22:13:05 Player: morimori Result: Destroyed by H-77 Assassin with High-powered Shotgun Performance ------------- Evolutions (7) 3500 Regions Visited (19) 3800 Robots Destroyed (208) 1040 Value Destroyed (9239) 9239 Prototype IDs (53) 1060 Alien Tech Used (2) 400 Bonus (767) 767 TOTAL SCORE: 19806 Bonus ------- High Alert Combat Kills 651 Follower Combat Kills 214 Entered Garrisons 200 Used RIF Installer 500 Aligned with FarCom 300 Friendly Fire -1098 Cogmind --------- Core Integrity 0/1300 Matter 300/300 Energy 100/100 System Corruption 40% Temperature Cool (0) Movement Core (50) Location -3/Research Parts ------- > --- POWER (2) -------- (None) > --- PROPULSION (6) --- (None) > --- UTILITY (11) ----- Advanced Target Analyzer Advanced Hacking Suite > --- WEAPON (2) ------- (None) > --- INVENTORY (5) ---- Quantum Capacitor Advanced Transmission Jammer Smartbomb Launcher Peak State ------------ > --- POWER ------------ Light Antimatter Reactor Micro Antimatter Reactor > --- PROPULSION ------- Flexi-carbon Leg Flexi-carbon Leg Myomer Leg Myomer Leg Myomer Leg Experimental Myomer Leg > --- UTILITY ---------- Advanced Power Amplifier Experimental Cooling System High-capacity Storage Unit Advanced Signal Interpreter Advanced Terrain Scan Processor Advanced Target Analyzer Advanced Force Field Hacking Suite Improved Hacking Suite Advanced Hacking Suite Improved System Guard > --- WEAPON ----------- Precision Phase Gun Nova Cannon > --- INVENTORY -------- Light Antimatter Reactor Micro Antimatter Reactor Flexi-carbon Leg Flexi-carbon Leg Experimental Matter Compressor Long-range Sensor Array Advanced Terrain Scanner Quantum Capacitor Advanced Transmission Jammer Advanced Thermal Shield Advanced Force Field Point Defense Array System Restoration Module Quantum Rifle Nova Cannon Coil Gun Coil Gun Smartbomb Launcher [Rating: 146] Favorites ----------- Power Light Antimatter Reactor Engine Light Ion Engine Power Core Micro Fission Core Reactor Light Antimatter Reactor Propulsion Armored Leg Treads Spiked Heavy Treads Leg Armored Leg Wheel Wheel Hover Unit Backup Propulsion VII Utility High-capacity Storage Unit Device Advanced Terrain Scanner Storage High-capacity Storage Unit Processor Advanced Terrain Scan Processor Hackware Hacking Suite Protection Improved Utility Shielding Weapon Heavy Plasma Cannon Energy Gun Precision Phase Gun Energy Cannon Heavy Plasma Cannon Ballistic Gun Assault Rifle Ballistic Cannon Light Cannon Launcher Smartbomb Launcher Impact Weapon Heavy Flail Build | -11 -10 -10 -10 -9 -8 -8 -8 -7 -6 -5 -5 -5 -5 -4 -4 -4 -4 -3 -3 ------- Run | Yrd Mat Min Exi Min Mat Gar Mat Fac Fac Fac Upp Upp Zhi Pro Fac Upp War Pro Res Slots Evolved 14 | . . . . . 4 . . 2 2 2 . . . . 2 . . . 2 Power 1 | . . . . . . . . . 1 . . . . . . . . . . Propulsion 4 | . . . . . 2 . . 1 . . . . . . 1 . . . . Utility 9 | . . . . . 2 . . 1 1 2 . . . . 1 . . . 2 Weapon . | . . . . . . . . . . . . . . . . . . . . Parts Attached 530 | 7 13 . 3 6 25 10 14 43 45 50 9 32 11 19 91 12 1 17 122 Power 48 | 1 1 . 1 1 2 . 3 1 3 6 . 1 4 1 6 3 . 1 13 Engine 17 | 1 1 . 1 . 1 . 2 1 1 2 . . 1 1 2 2 . 1 . Core 14 | . . . . 1 1 . 1 . 2 4 . 1 1 . 1 1 . . 1 Reactor 17 | . . . . . . . . . . . . . 2 . 3 . . . 12 Propulsion 71 | 2 5 . . 2 5 1 2 10 3 5 . . . 2 8 4 . 1 21 Treads 2 | . . . . . . . . . . . . . . . . 2 . . . Leg 58 | . . . . . 4 1 2 10 3 5 . . . 2 8 2 . 1 20 Wheel 10 | 2 5 . . 2 1 . . . . . . . . . . . . . . Hover 1 | . . . . . . . . . . . . . . . . . . . 1 Flight . | . . . . . . . . . . . . . . . . . . . . Utility 296 | 2 4 . 2 3 13 2 5 21 26 35 6 21 5 9 60 3 . 11 68 Device 214 | 1 2 . 2 3 5 1 3 17 18 26 4 15 2 6 40 3 . 10 56 Storage 9 | 1 2 . . . 1 . . . . . . . . 2 3 . . . . Processor 13 | . . . . . 5 . 1 . 1 . . 1 . . 1 . . . 4 Hackware 9 | . . . . . . . . . 1 1 . . 1 . 4 . . . 2 Protection 51 | . . . . . 2 1 1 4 6 8 2 5 2 1 12 . . 1 6 Artifact . | . . . . . . . . . . . . . . . . . . . . Weapon 115 | 2 3 . . . 5 7 4 11 13 4 3 10 2 7 17 2 1 4 20 Energy Gun 8 | . . . . . . . . . . . . 1 . 1 . . . 1 5 Energy Cannon 33 | . . . . . . . . 3 6 1 . 1 1 3 7 2 1 1 7 Ballistic Gun 39 | 2 1 . . . 4 2 4 2 5 2 1 6 1 1 2 . . . 6 Ballistic Cannon 14 | . 2 . . . . . . 5 2 . . . . . 5 . . . . Launcher 20 | . . . . . 1 5 . . . 1 2 2 . 2 3 . . 2 2 Special Weapon . | . . . . . . . . . . . . . . . . . . . . Impact Weapon 1 | . . . . . . . . 1 . . . . . . . . . . . Slashing Weapon . | . . . . . . . . . . . . . . . . . . . . Piercing Weapon . | . . . . . . . . . . . . . . . . . . . . Special Melee Weapon . | . . . . . . . . . . . . . . . . . . . . Unidentified Prototypes 21 | . . . . 1 1 . 1 . 1 2 . . 5 6 2 . . . 2 Parts Lost 64 | . 1 . . 2 . 1 1 2 . . . 1 . . 16 . . 1 39 Power 7 | . . . . . . . . 1 . . . . . . 3 . . . 3 Propulsion 21 | . . . . 2 . 1 1 . . . . . . . 5 . . 1 11 Utility 24 | . . . . . . . . 1 . . . . . . 3 . . . 20 Weapon 12 | . 1 . . . . . . . . . . 1 . . 5 . . . 5 Highest Loss Streak 27 | . 1 . . 2 . 1 1 1 . . . 1 . . 10 . . 1 27 To Critical Strikes 1 | . . . . . . . . . . . . . . . 1 . . . . Average Slot Usage (%) 93 | . 100 100 100 99 92 90 89 93 92 99 100 99 90 99 97 70 87 89 93 Engine 4 | . 14 14 14 4 3 . 5 1 8 1 . . 3 9 1 7 5 5 . Core 4 | . . . . 9 5 9 3 5 3 9 11 11 7 . . 1 5 5 1 Reactor 1 | . . . . . . . . . . . . . . . 7 . . . 7 Leg 21 | . . . . . 18 18 17 31 25 28 29 29 29 29 29 7 15 17 21 Wheel 4 | . 28 28 28 27 11 9 9 . . . . . . . . . . . . Device 12 | . 14 14 14 14 8 4 8 14 12 15 11 10 9 10 12 15 15 14 15 Storage 6 | . 14 14 14 14 9 9 9 7 6 5 5 5 5 5 5 5 5 5 3 Processor 11 | . . . . . 17 18 18 15 13 11 11 11 11 11 10 10 10 10 13 Hackware 8 | . . . . . . . . . 5 10 11 11 11 11 15 15 15 15 16 Protection 1 | . . . . . . 4 . . . 1 5 5 5 5 . . . . . Energy Cannon 2 | . . . . . . . . 2 4 4 5 3 2 4 3 4 3 3 1 Ballistic Gun 7 | . 20 14 14 14 15 12 15 7 7 5 4 5 . 4 3 . . . 3 Ballistic Cannon 2 | . 7 14 14 14 2 . . 3 . . . . . . 2 . . . . Peak Build Rating 146 | 8 9 9 18 20 36 41 41 53 67 88 87 92 89 96 120 107 107 117 146 Average Rating 74 | 6 8 9 10 18 32 37 37 48 61 84 85 86 80 90 110 77 105 112 132 On Entrance 55 | . 8 9 9 11 20 35 41 38 51 65 85 87 86 89 91 57 107 107 110 Naked Turns . | . . . . . . . . . . . . . . . . . . . . Heaviest Build 113 | 13 51 51 51 58 62 70 70 75 97 113 82 97 79 94 110 71 71 96 99 Greatest Support 140 | 26 26 20 20 20 28 28 28 81 81 81 80 80 80 89 114 103 65 93 140 Greatest Overweight (x) 7 | . 2 2 2 5 3 2 2 . 1 1 1 1 . 1 2 2 1 1 7 Average Overweight (x) . | . 1 2 2 2 1 1 1 . . . . . . . . 1 . . . Largest Inventory Capacity 20 | 8 20 20 20 20 20 20 20 20 20 20 20 20 20 20 20 20 20 20 20 Average Capacity 19 | 7 15 20 20 20 20 20 20 20 20 20 20 20 20 20 20 20 20 20 19 Most Carried 20 | 8 20 20 20 20 20 20 20 20 20 20 20 20 20 20 20 20 20 20 20 Average Carried 19 | 6 13 20 19 19 19 19 19 19 19 19 19 19 18 19 19 18 20 19 19 Final Capacity 20 | 8 20 20 20 20 20 20 20 20 20 20 20 20 20 20 20 20 20 20 5 Final Carried 20 | 8 20 20 20 19 20 20 20 19 20 19 20 17 17 20 15 20 20 20 5 Class Distribution -------------------- 35% | Hacker-Skirmisher 19% | Skirmisher 17% | Mutant 16% | Hacker-Mutant 6% | Scavenger-Skirmisher 4% | Scavenger-Mutant Dominant Class ---------------- Mutant | -10/Materials Mutant | -10/Mines Mutant | -10/Exiles Mutant | -9/Mines Skirmisher | -8/Materials Mutant | -8/Garrison Mutant | -8/Materials Skirmisher | -7/Factory Skirmisher | -6/Factory Hacker-Skirmisher | -5/Factory Hacker-Skirmisher | -5/Upper Caves Hacker-Skirmisher | -5/Upper Caves Hacker-Mutant | -5/Zhirov Hacker-Skirmisher | -4/Proximity Caves Hacker-Skirmisher | -4/Factory Hacker-Mutant | -4/Upper Caves Hacker-Mutant | -4/Warlord Hacker-Skirmisher | -3/Proximity Caves Hacker-Skirmisher | -3/Research Resources | -11 -10 -10 -10 -9 -8 -8 -8 -7 -6 -5 -5 -5 -5 -4 -4 -4 -4 -3 -3 ----------- Run | Yrd Mat Min Exi Min Mat Gar Mat Fac Fac Fac Upp Upp Zhi Pro Fac Upp War Pro Res Matter Collected 11276 | 314 496 . 37 211 434 385 493 704 722 607 173 445 166 880 1756 681 . 406 2366 Remotely . | . . . . . . . . . . . . . . . . . . . . Salvage Created 10356 | 235 577 . . 268 139 367 518 407 724 427 90 544 298 453 1619 576 . 139 2975 Parts 474 | 17 39 . . 16 19 21 26 22 32 24 2 20 2 13 69 14 . 12 126 Haulers Intercepted 2 | . 2 . . . . . . . . . . . . . . . . . . Recyclers Shooed 15 | 1 2 . . . . . . 1 1 . . . . . 7 . . . 3 Parts Field Recycled 18 | . . . . . . . . . . 15 . . . . . . . 3 . Retrieved Matter 369 | . . . . . . . . . . 358 . . . . . . . 11 . Parts Self-Destructed 37 | . . . . . . . . . . . 2 19 1 8 . . . 7 . Prevented . | . . . . . . . . . . . . . . . . . . . . Kills | -11 -10 -10 -10 -9 -8 -8 -8 -7 -6 -5 -5 -5 -5 -4 -4 -4 -4 -3 -3 ------- Run | Yrd Mat Min Exi Min Mat Gar Mat Fac Fac Fac Upp Upp Zhi Pro Fac Upp War Pro Res Combat Hostiles Destroyed 153 | . 9 . . 4 3 11 9 7 7 9 1 10 . 4 31 . . 8 40 Guns 63 | . 5 . . 1 2 3 9 2 3 5 . 4 . . 2 . . . 27 Cannons 55 | . 4 . . 3 1 . . 5 4 4 1 3 . . 22 . . 1 7 AOE 30 | . . . . . . 7 . . . . . 3 . 4 7 . . 7 2 Classes Destroyed 18 | 3 5 . . 1 1 1 1 . . . . . . . 2 4 . . . Worker 14 | 1 . . . 1 1 . . 1 . . . . . . 5 . . . 5 Builder 1 | . 1 . . . . . . . . . . . . . . . . . . Tunneler 7 | 5 . . . 1 . . 1 . . . . . . . . . . . . Hauler 2 | . 2 . . . . . . . . . . . . . . . . . . Recycler 11 | 1 2 . . 1 . . . 1 3 . . . . . 2 . . . 1 Mechanic 1 | . . . . . . . . . . . . . . . 1 . . . . Operator 1 | . . . . . . . 1 . . . . . . . . . . . . Watcher 11 | . 3 . . . 2 . 1 2 . . . . . . 2 . . . 1 Swarmer 36 | . 5 . . . 2 4 . . . 5 . 4 . 4 9 . . 3 . Grunt 49 | . 4 . . 4 . 2 7 5 2 . . 4 . . 4 . . 3 14 Brawler 2 | . . . . . . . . . . . . . . . . . . 1 1 Sentry 12 | . . . . . 1 2 2 . 2 2 1 . . . . . . . 2 Hunter 13 | . . . . . . . . . . . . . . . 6 . . . 7 Programmer 41 | . . . . . . 3 . 2 3 2 . 2 . . 12 . . 1 16 Zionite 1 | . . . . 1 . . . . . . . . . . . . . . . Decomposer 2 | . . . . . . . . . . . . . . . . 2 . . . Packrat 1 | . . . . . . . . . . . . . . . . 1 . . . Samaritan 1 | . . . . . . . . . . . . . . . . 1 . . . Thug 2 | . . . . 1 . . . . . . . . . . . 1 . . . Savage 2 | . . . . . . . . . . . . . . . . 2 . . . Butcher 1 | . . . . . . . . . . . . . . . . 1 . . . Mutant 1 | . . . . . . . . . . . . . . . . 1 . . . Best Kill Streak 10 | 2 4 . . 5 1 4 5 3 1 4 1 4 . 4 10 . . 4 9 Combat Bots Only 7 | . 4 . . 4 1 4 5 3 1 4 1 4 . 4 7 . . 4 6 Max Kills in Single Turn 4 | 1 1 . . 1 1 3 1 1 1 1 1 2 . 4 3 1 . 2 3 Gunslinging . | . . . . . . . . . . . . . . . . . . . . Exploded 4 | . . . . . . 3 . . . . . 2 . 4 3 . . 2 1 Melee . | . . . . . . . . . . . . . . . . . . . . Uniques/NPCs Destroyed . | . . . . . . . . . . . . . . . . . . . . Combat | -11 -10 -10 -10 -9 -8 -8 -8 -7 -6 -5 -5 -5 -5 -4 -4 -4 -4 -3 -3 -------- Run | Yrd Mat Min Exi Min Mat Gar Mat Fac Fac Fac Upp Upp Zhi Pro Fac Upp War Pro Res Hostile Shots Fired 1478 | . 52 8 . 22 8 59 51 56 99 85 14 65 . . 415 . . 11 533 Missed 378 | . 9 3 . 6 3 21 13 11 29 23 2 19 . . 114 . . 2 123 Damage Taken 13481 | . 495 65 . 179 46 626 452 531 598 682 134 420 . . 3624 . 142 125 5362 Core 2316 | . 118 . . 24 . 46 93 46 55 110 31 46 . . 446 . . . 1301 Absorbed by Shields 4118 | . . . . . . 20 136 153 162 298 89 237 . . 896 . . 38 2089 Redirected to Shielding 108 | . . . . . . . . . 6 . . 24 . . 19 . . . 59 Ignored by Resistances 3119 | . . . . . 2 10 8 . 138 247 68 223 . . 1060 . . 33 1330 Regen/Repaired (Parts) 981 | . . . . . 72 . . 56 93 253 . . . . 320 . . . 187 Core Remaining (%) 76 | 100 . . . 43 . . 74 93 93 . . . . 73 . . . 61 . Volleys Fired 949 | 22 57 1 . 23 31 49 42 83 58 47 18 46 13 30 170 44 1 22 192 Largest 2 | 2 2 2 . 2 2 2 2 2 2 2 2 2 1 1 2 1 1 1 2 Hottest 207 | 40 55 55 . 55 55 40 43 93 123 123 123 123 90 90 171 105 105 105 207 Shots Fired 1534 | 44 114 2 . 46 62 79 84 124 90 68 26 62 13 32 266 44 1 23 354 Gun 885 | 44 98 1 . 23 52 63 84 50 44 33 8 25 . 1 77 . . 1 281 Cannon 602 | . 16 1 . 23 10 . . 74 46 35 18 31 13 30 183 44 1 9 68 Launcher 47 | . . . . . . 16 . . . . . 6 . 1 6 . . 13 5 Special . | . . . . . . . . . . . . . . . . . . . . Kinetic 919 | 44 114 2 . 46 62 63 84 84 45 33 8 23 . 1 161 . . . 149 Thermal 568 | . . . . . . . . 40 45 35 18 33 13 30 99 44 1 10 200 Explosive 36 | . . . . . . 11 . . . . . 2 . 1 4 . . 13 5 Electromagnetic 11 | . . . . . . 5 . . . . . 4 . . 2 . . . . Robot Hit Streak 27 | 6 10 5 . 7 10 27 10 8 11 8 5 14 8 7 16 6 . 2 14 Robot Miss Streak 7 | 4 6 . . 2 7 3 2 3 2 3 2 3 1 2 5 2 . 1 4 Penetration Max 1 | . . . . . . . . 1 1 1 . . . . 1 . . . 1 Secondary Targets 12 | . 1 . . . . 1 3 . . . . . . . . . . . 7 Max Gunslinging Chain 1 | . 1 . . . . 1 1 . . . . . . . . . . . 1 Shots Hit Robots 879 | 26 71 2 . 32 37 55 66 51 49 37 11 29 12 9 127 19 . 2 244 Core Hits 434 | 13 34 1 . 14 17 35 30 17 20 18 5 22 4 9 67 10 . 16 102 Critical Kills 32 | . . . . . . . . . 2 5 . 2 1 . 15 3 . . 4 Critical Parts Destroyed 43 | . 1 . . . 1 1 . . 3 5 3 2 . . 23 . . . 4 Critical Strikes 90 | . 1 . . 1 1 1 . 2 7 12 3 4 1 . 39 3 . . 15 Burn 7 | . . . . . . . . . . . . . . . . . . . 7 Meltdown 5 | . . . . . . . . . . . . . 1 . 1 3 . . . Destroy 74 | . 1 . . . 1 1 . . 7 12 3 4 . . 37 . . . 8 Blast 4 | . . . . 1 . . . 2 . . . . . . 1 . . . . Melee Attacks 3 | . . . . . . . . 3 . . . . . . . . . . . Impact 3 | . . . . . . . . 3 . . . . . . . . . . . Slashing . | . . . . . . . . . . . . . . . . . . . . Piercing . | . . . . . . . . . . . . . . . . . . . . Sneak Attacks . | . . . . . . . . . . . . . . . . . . . . Combat Hostiles . | . . . . . . . . . . . . . . . . . . . . Follow-up Attacks . | . . . . . . . . . . . . . . . . . . . . Damage Inflicted 26791 | 227 695 24 . 542 547 1287 991 1314 1004 707 212 1068 545 578 5598 681 . 1781 8990 Guns 12227 | 227 482 10 . 208 421 463 979 564 295 197 48 247 . . 1221 . . . 6865 Cannons 8874 | . 213 14 . 334 126 . . 750 709 510 164 420 545 282 2913 681 . 38 1175 Explosions 5573 | . . . . . . 824 . . . . . 401 . 296 1413 . . 1743 896 Melee . | . . . . . . . . . . . . . . . . . . . . Ramming 117 | . . . . . . . 12 . . . . . . . 51 . . . 54 Kinetic 11311 | 227 695 24 . 542 547 463 979 1235 321 197 48 205 . . 2834 . . . 2994 Thermal 9790 | . . . . . . . . 79 683 510 164 462 545 282 1300 681 . 38 5046 Explosive 5093 | . . . . . . 676 . . . . . 264 . 296 1218 . . 1743 896 Electromagnetic 480 | . . . . . . 148 . . . . . 137 . . 195 . . . . Impact . | . . . . . . . . . . . . . . . . . . . . Slashing . | . . . . . . . . . . . . . . . . . . . . Piercing . | . . . . . . . . . . . . . . . . . . . . Highest Corruption 40 | . . . . . . 3 3 3 4 2 2 4 4 4 8 8 8 1 40 Average Corruption 3 | . . . . . . 2 3 1 1 1 2 2 4 4 3 8 2 1 7 Corruption Purged 3 | . . . . . . . . 3 . . . . . . . . . . . Corruption Blocked . | . . . . . . . . . . . . . . . . . . . . Effects 394 | . . . . . . 6 30 11 12 10 18 31 6 42 69 70 4 11 74 Message Errors 99 | . . . . . . 1 13 3 3 1 5 9 . 8 12 22 1 2 19 Matter Fused 80 | . . . . . . 1 4 . 1 3 4 4 . 11 11 20 . 3 18 Heat Flow Errors 47 | . . . . . . . 3 1 2 1 1 7 4 6 8 6 . 2 6 Energy Discharges 62 | . . . . . . 3 4 . 4 3 2 3 1 7 9 14 1 . 11 Parts Rejected 5 | . . . . . . . 1 1 . . . . . . 2 . . . 1 Parts Fused 4 | . . . . . . . 1 . 1 . . 1 . . 1 . . . . Data Loss (minor) 45 | . . . . . . . . 3 . 1 3 6 . 5 13 4 2 1 7 Data Loss (major) 15 | . . . . . . . 1 1 . . 1 1 1 3 . 3 . 2 2 Misfires 17 | . . . . . . . 1 2 1 1 1 . . 2 4 . . 1 4 Alerts 9 | . . . . . . . 1 . . . 1 . . . 3 1 . . 3 Misdirections 3 | . . . . . . . . . . . . . . . . . . . 3 Weapon Failures 8 | . . . . . . 1 1 . . . . . . . 6 . . . . Overload Shots . | . . . . . . . . . . . . . . . . . . . . Overflow Damage 477 | . . . . 5 . . . 12 40 25 . 14 70 53 131 63 . 26 38 Projectiles 393 | . . . . 5 . . . 12 40 25 . . 70 53 104 63 . . 21 Explosions 76 | . . . . . . . . . . . . 14 . . 20 . . 26 16 Melee 8 | . . . . . . . . . . . . . . . 7 . . . 1 Knockbacks 34 | . 4 . . 1 4 . . 4 . . . . . . 21 . . . . Impact 2 | . . . . . . . . . . . . . . . 2 . . . . Kinetic 30 | . 4 . . 1 4 . . 4 . . . . . . 17 . . . . Secondary 2 | . . . . . . . . . . . . . . . 2 . . . . Self-Inflicted Damage 505 | . . . . . . 125 6 . . . . 63 . . 299 . . . 12 Shots 11 | . . . . . . 4 . . . . . 3 . . 4 . . . . Rammed 11 | . . . . . . . 1 . . . . . . . . . . . 10 Targets Rammed 17 | . . . . . . . 1 . . . . . . . 3 . . . 13 Kicked 6 | . . . . . . . . . . . . . . . 3 . . . 3 Crushed . | . . . . . . . . . . . . . . . . . . . . Highest Temperature 608 | . 59 . . . 2 12 177 250 318 365 410 221 393 268 458 214 247 202 608 Average Temperature 83 | . 21 . . . 2 7 85 52 69 87 136 81 167 65 100 62 108 79 75 Received Heat Transfer 2153 | . 177 . . 96 9 63 211 256 185 111 59 140 . . 152 . . 12 682 Effects 27 | . . . . . . . . . 1 1 . . 3 1 13 1 . . 7 Shutdowns 9 | . . . . . . . . . 1 . . . 1 . 4 . . . 3 Energy Bleed 4 | . . . . . . . . . . . . . 1 . 2 . . . 1 Interference 7 | . . . . . . . . . . 1 . . . 1 4 1 . . . Short Circuit 2 | . . . . . . . . . . . . . 1 . . . . . 1 Damage (minor) 1 | . . . . . . . . . . . . . . . . . . . 1 Damage (major) 3 | . . . . . . . . . . . . . . . 3 . . . . Damage (core) 1 | . . . . . . . . . . . . . . . . . . . 1 Siege Activations . | . . . . . . . . . . . . . . . . . . . . Robots Corrupted 2 | . . . . . . 1 . . . . . . . . . . . . 1 Combat Hostiles 1 | . . . . . . 1 . . . . . . . . . . . . . Parts Fried 2 | . . . . . . 1 . . . . . . . . . . . . 1 Impact Corruptions 2 | . . . . . . . . . . . . . . . 1 . . . 1 Robots Melted 9 | . . . . . . . . . . . . . 1 . 1 3 . . 4 Combat Hostiles 5 | . . . . . . . . . . . . . 1 . . . . . 4 Parts Melted 30 | . . . . . . . . . . 2 . . . . 2 4 . . 22 Heat Transferred 11532 | . . . . . . . . 111 1000 750 250 700 486 450 1310 703 . 37 5735 Parts Sabotaged . | . . . . . . . . . . . . . . . . . . . . Parts Stolen 2 | . . . . . . . . . . . . 2 . . . . . . . Parts Stripped . | . . . . . . . . . . . . . . . . . . . . Power Chain Reactions . | . . . . . . . . . . . . . . . . . . . . Alert | -11 -10 -10 -10 -9 -8 -8 -8 -7 -6 -5 -5 -5 -5 -4 -4 -4 -4 -3 -3 ------- Run | Yrd Mat Min Exi Min Mat Gar Mat Fac Fac Fac Upp Upp Zhi Pro Fac Upp War Pro Res Peak Influence 775 | 35 209 6 . 100 335 431 226 90 92 314 . . . . 775 . . . 576 Initial 209 | . 22 6 . . . 9 209 58 27 17 . . . . . . . . 20 Average 119 | 18 83 5 . 29 70 278 117 32 31 105 . . . . 161 . . . 266 Maximum Alert Level 3 | . 1 . . . 1 2 1 . . 1 . . . . 3 . . . 2 Low Security (%) 79 | 100 88 100 . 100 89 17 86 100 100 89 . . . . 80 . . . 35 Level 1 12 | . 11 . . . 10 68 13 . . 10 . . . . 5 . . . 35 Level 2 7 | . . . . . . 13 . . . . . . . . 10 . . . 28 Level 3 . | . . . . . . . . . . . . . . . 4 . . . . Level 4 . | . . . . . . . . . . . . . . . . . . . . Level 5 . | . . . . . . . . . . . . . . . . . . . . High Security . | . . . . . . . . . . . . . . . . . . . . Max Security . | . . . . . . . . . . . . . . . . . . . . Squads Dispatched 44 | . . . . . 1 . 2 4 7 4 . . . . 14 . . . 12 Investigation 7 | . . . . . 1 . 1 1 1 . . . . . 1 . . . 2 Extermination 20 | . . . . . . . . 2 3 2 . . . . 6 . . . 7 Reinforcement 9 | . . . . . . . 1 1 . 1 . . . . 3 . . . 3 Assault 2 | . . . . . . . . . . 1 . . . . 1 . . . . Garrison 6 | . . . . . . . . . 3 . . . . . 3 . . . . Intercept . | . . . . . . . . . . . . . . . . . . . . Searches Triggered . | . . . . . . . . . . . . . . . . . . . . Construction Impeded 2 | . . . . . . . . . . . . . . . 2 . . . . Haulers Reinforced 2 | . . . . . . . . . . . . . . . . . . . 2 Active Scanning Responses . | . . . . . . . . . . . . . . . . . . . . Cargo Convoy Interrupts . | . . . . . . . . . . . . . . . . . . . . Stealth | -11 -10 -10 -10 -9 -8 -8 -8 -7 -6 -5 -5 -5 -5 -4 -4 -4 -4 -3 -3 --------- Run | Yrd Mat Min Exi Min Mat Gar Mat Fac Fac Fac Upp Upp Zhi Pro Fac Upp War Pro Res Distress Signals 18 | . 1 . . . 5 . 2 1 . 1 . . . . 4 . . . 4 Communications Jammed 73 | . . . . . . . . . . . . . . . 47 . . . 26 Distress Signals 72 | . . . . . . . . . . . . . . . 47 . . . 25 Times Spotted 310 | . 23 4 . 5 28 14 28 15 9 23 1 11 . . 70 . . 4 75 Peak Tracking Total 11 | . 6 4 . 3 11 4 5 3 3 5 1 4 . . 10 . . 4 8 Tactical Retreats 22 | . 3 . . 1 4 . 3 1 . 5 . . . . 4 . . . 1 Traps | -11 -10 -10 -10 -9 -8 -8 -8 -7 -6 -5 -5 -5 -5 -4 -4 -4 -4 -3 -3 ------- Run | Yrd Mat Min Exi Min Mat Gar Mat Fac Fac Fac Upp Upp Zhi Pro Fac Upp War Pro Res Traps Triggered 18 | . 1 . . . . 3 . 3 2 . . . . . 3 . 2 . 4 Indirectly 1 | . . . . . . 1 . . . . . . . . . . . . . Trap Hack Attempts . | . . . . . . . . . . . . . . . . . . . . Triggered . | . . . . . . . . . . . . . . . . . . . . Disarmed . | . . . . . . . . . . . . . . . . . . . . Reprogrammed . | . . . . . . . . . . . . . . . . . . . . Reused . | . . . . . . . . . . . . . . . . . . . . Traps Extracted . | . . . . . . . . . . . . . . . . . . . . Installed . | . . . . . . . . . . . . . . . . . . . . Triggered . | . . . . . . . . . . . . . . . . . . . . Machines | -11 -10 -10 -10 -9 -8 -8 -8 -7 -6 -5 -5 -5 -5 -4 -4 -4 -4 -3 -3 ---------- Run | Yrd Mat Min Exi Min Mat Gar Mat Fac Fac Fac Upp Upp Zhi Pro Fac Upp War Pro Res Machines Disabled 13 | . . . . . 1 3 2 2 . 1 . . . . 3 . . . 1 Max in Single Turn 2 | . . . . . . 1 1 1 . . . . . . 2 . . . 1 Garrison Access 9 | . . . . . . . 1 2 2 2 . . . . 1 . . . 1 Garrison Relay 1 | . . . . . . 1 . . . . . . . . . . . . . Machines Repaired . | . . . . . . . . . . . . . . . . . . . . Machines Dismantled . | . . . . . . . . . . . . . . . . . . . . Machines Sabotaged . | . . . . . . . . . . . . . . . . . . . . Overloaded Fab Kills . | . . . . . . . . . . . . . . . . . . . . Hacking | -11 -10 -10 -10 -9 -8 -8 -8 -7 -6 -5 -5 -5 -5 -4 -4 -4 -4 -3 -3 --------- Run | Yrd Mat Min Exi Min Mat Gar Mat Fac Fac Fac Upp Upp Zhi Pro Fac Upp War Pro Res Machines Accessed 115 | . 11 . 1 1 16 . 8 19 14 7 1 1 8 1 15 . . . 12 Terminals 56 | . 8 . . . 10 . 4 8 8 2 1 1 . 1 7 . . . 6 Fabricators 8 | . . . . . . . . 5 1 . . . . . 1 . . . 1 Repair Stations 13 | . 1 . . . 2 . 1 1 1 2 . . . . 3 . . . 2 Recycling Units 12 | . 2 . . . 1 . 1 3 1 1 . . . . 3 . . . . Scanalyzers 7 | . . . . . 2 . 1 . 1 1 . . . . . . . . 2 Garrison Access 9 | . . . . . 1 . 1 2 2 1 . . . . 1 . . . 1 Total Hacks 306 | . 31 . 1 1 48 . 27 42 29 13 1 1 47 1 35 . . . 29 Successful 181 | . 11 . 1 1 25 . 16 20 15 7 1 1 47 1 19 . . . 16 Failed 124 | . 20 . . . 22 . 11 22 14 6 . . . . 16 . . . 13 Catastrophic 24 | . 2 . . . 6 . . 6 2 1 . . . . 3 . . . 4 Database Lockouts 1 | . . . . . 1 . . . . . . . . . . . . . . Manual 126 | . 23 . 1 . 22 . 13 27 14 4 . . . . 16 . . . 6 Terminals 150 | . 24 . . . 30 . 14 21 19 4 1 1 . 1 21 . . . 14 Fabricators 20 | . . . . . . . . 12 2 . . . . . 3 . . . 3 Repair Stations 29 | . 2 . . . 4 . 2 2 3 5 . . . . 7 . . . 4 Recycling Units 18 | . 5 . . . 2 . 1 5 1 1 . . . . 3 . . . . Scanalyzers 31 | . . . . . 11 . 9 . 2 2 . . . . . . . . 7 Garrison Access 9 | . . . . . 1 . 1 2 2 1 . . . . 1 . . . 1 Terminal Hacks 87 | . 5 . 1 1 12 . 2 2 5 . 1 1 47 1 6 . . . 3 Record 39 | . . . . . . . . . 1 . 1 1 35 1 . . . . . Part Schematic 9 | . 1 . . . 2 . . . . . . . 4 . 2 . . . . Robot Analysis 14 | . 3 . . . 3 . . 1 1 . . . 4 . 2 . . . . Prototype ID Bank 4 | . . . . . . . . . . . . . 4 . . . . . . Open Door 1 | . . . . 1 . . . . . . . . . . . . . . . Branch Access Points 3 | . . . . . 1 . . . 1 . . . . . 1 . . . . Emergency Access Points 1 | . . . . . 1 . . . . . . . . . . . . . . Machine Index 1 | . . . . . . . . . 1 . . . . . . . . . . Terminal Index 5 | . 1 . . . 1 . . 1 1 . . . . . . . . . 1 Unreport Threat 6 | . . . . . 2 . 2 . . . . . . . . . . . 2 Locate Traps 3 | . . . . . 2 . . . . . . . . . 1 . . . . Derelict Proto ID Bank 1 | . . . 1 . . . . . . . . . . . . . . . . Fabricator Hacks 10 | . . . . . . . . 3 1 . . . . . 3 . . . 3 Network Status 4 | . . . . . . . . 1 1 . . . . . 1 . . . 1 Load Schematic 3 | . . . . . . . . 1 . . . . . . 1 . . . 1 Build 3 | . . . . . . . . 1 . . . . . . 1 . . . 1 Repair Station Hacks 21 | . 1 . . . 4 . 1 2 2 4 . . . . 5 . . . 2 Scan Component 12 | . 1 . . . 2 . 1 1 1 2 . . . . 3 . . . 1 Repair 9 | . . . . . 2 . . 1 1 2 . . . . 2 . . . 1 Recycling Unit Hacks 10 | . 2 . . . . . 1 2 1 1 . . . . 3 . . . . Retrieve Components 10 | . 2 . . . . . 1 2 1 1 . . . . 3 . . . . Scanalyzer 21 | . . . . . 5 . 8 . 2 . . . . . . . . . 6 Insert Component 11 | . . . . . 3 . 4 . 1 . . . . . . . . . 3 Analyze 10 | . . . . . 2 . 4 . 1 . . . . . . . . . 3 Garrison Access Hacks 9 | . . . . . 1 . 1 2 2 1 . . . . 1 . . . 1 Unlock Access 1 | . . . . . 1 . . . . . . . . . . . . . . Seal Access 8 | . . . . . . . 1 2 2 1 . . . . 1 . . . 1 Unauthorized Hacks 23 | . 3 . . . 3 . 3 9 2 1 . . . . 1 . . . 1 Terminals 20 | . 3 . . . 3 . 3 6 2 1 . . . . 1 . . . 1 Track 2 | . . . . . . . 1 1 . . . . . . . . . . . Assimilate 8 | . 1 . . . . . . 4 1 1 . . . . . . . . 1 Botnet 6 | . 1 . . . 2 . 1 . 1 . . . . . 1 . . . . Disrupt 3 | . . . . . 1 . 1 1 . . . . . . . . . . . Operators 1 | . 1 . . . . . . . . . . . . . . . . . . Fabricators 3 | . . . . . . . . 3 . . . . . . . . . . . Fabnet 3 | . . . . . . . . 3 . . . . . . . . . . . Repair Stations . | . . . . . . . . . . . . . . . . . . . . Recycling Units . | . . . . . . . . . . . . . . . . . . . . Scanalyzers . | . . . . . . . . . . . . . . . . . . . . Garrison Access . | . . . . . . . . . . . . . . . . . . . . Data Cores Recovered . | . . . . . . . . . . . . . . . . . . . . Used . | . . . . . . . . . . . . . . . . . . . . Hacking Detections 83 | . 10 . . . 14 . 7 15 10 4 . 1 . 1 11 . . . 10 Full Trace Events 8 | . 1 . . . 1 . 1 1 1 . . . . . 1 . . . 2 Feedback Events 1 | . . . . . . . . 1 . . . . . . . . . . . Corruption 1 | . . . . . . . . 1 . . . . . . . . . . . Feedback Blocked . | . . . . . . . . . . . . . . . . . . . . Robot Schematics Acquired . | . . . . . . . . . . . . . . . . . . . . Robots Built . | . . . . . . . . . . . . . . . . . . . . Authchips . | . . . . . . . . . . . . . . . . . . . . Time . | . . . . . . . . . . . . . . . . . . . . Total Robot Build Rating . | . . . . . . . . . . . . . . . . . . . . Part Schematics Acquired 18 | . 1 . . . 4 . 4 . 1 . . . 4 . 2 . . . 2 Parts Built 3 | . . . . . . . . 1 . . . . . . 1 . . . 1 Authchips . | . . . . . . . . . . . . . . . . . . . . Time 246 | . . . . . . . . 84 . . . . . . 106 . . . 56 Total Part Build Rating 16 | . . . . . . . . 4 . . . . . . 6 . . . 6 Parts Repaired 9 | . . . . . 2 . . 1 1 2 . . . . 2 . . . 1 Time 286 | . . . . . 63 . . 38 19 69 . . . . 61 . . . 36 Parts Recycled . | . . . . . . . . . . . . . . . . . . . . Recycled Matter . | . . . . . . . . . . . . . . . . . . . . Retrieved Matter . | . . . . . . . . . . . . . . . . . . . . Retrieved Components 54 | . 10 . . . . . 10 10 7 5 . . . . 12 . . . . Parts Scanalyzed 10 | . . . . . 2 . 4 . 1 . . . . . . . . . 3 Part Schematics Acquired 9 | . . . . . 2 . 4 . 1 . . . . . . . . . 2 Parts Damaged . | . . . . . . . . . . . . . . . . . . . . Bothacking | -11 -10 -10 -10 -9 -8 -8 -8 -7 -6 -5 -5 -5 -5 -4 -4 -4 -4 -3 -3 ------------ Run | Yrd Mat Min Exi Min Mat Gar Mat Fac Fac Fac Upp Upp Zhi Pro Fac Upp War Pro Res Used RIF Installer 1 | . . . . . . 1 . . . . . . . . . . . . . Robots Hacked 1 | . . . . . . . . . . 1 . . . . . . . . . Non-combat . | . . . . . . . . . . . . . . . . . . . . Combat 1 | . . . . . . . . . . 1 . . . . . . . . . Robot Hacks Applied . | . . . . . . . . . . . . . . . . . . . . Relay Couplers Released 11 | . . . . . . 4 . . . 1 . . . . 6 . . . . Machine Destruction 8 | . . . . . . 4 . . . 1 . . . . 3 . . . . Programmers 3 | . . . . . . . . . . . . . . . 3 . . . . Fabnet Peak Effective % 9 | . . . . . . . . . 9 3 3 3 3 . . . . . . Autooverrided 1 | . . . . . . . . . . 1 . . . . . . . . . Robots Rewired . | . . . . . . . . . . . . . . . . . . . . Allies Hacked 1 | . . . . . . . . . . 1 . . . . . . . . . Hacks Repelled . | . . . . . . . . . . . . . . . . . . . . Allies | -11 -10 -10 -10 -9 -8 -8 -8 -7 -6 -5 -5 -5 -5 -4 -4 -4 -4 -3 -3 -------- Run | Yrd Mat Min Exi Min Mat Gar Mat Fac Fac Fac Upp Upp Zhi Pro Fac Upp War Pro Res Total Allies 19 | . 1 . . 7 4 . . 2 1 3 . . . . . . . . 1 Largest Group 4 | . 1 1 . 3 4 . . 2 1 2 . . . . . . . . 1 Highest-Rated Group 83 | . 10 10 . 48 56 . . 20 26 83 . . . . . . . . 26 Highest-Rated Ally 54 | . 10 10 . 31 16 . . 10 26 54 . . . . . . . . 26 Total Orders 44 | . . . 2 17 11 . . 4 8 2 . . . . . . . . . STAY 7 | . . . . 1 . . . 2 4 . . . . . . . . . . ROAM 5 | . . . . 2 3 . . . . . . . . . . . . . . FOLLOW 10 | . . . . 4 . . . 2 4 . . . . . . . . . . EXPLORE 17 | . . . 1 6 8 . . . . 2 . . . . . . . . . RETURN 5 | . . . 1 4 . . . . . . . . . . . . . . . Ally Attacks 99 | . . . . 13 78 . . . . 8 . . . . . . . . . Total Damage 780 | . . . . 68 635 . . . . 77 . . . . . . . . . Kills 20 | . . . . 4 15 . . . . 1 . . . . . . . . . Allies Corrupted 1 | . . 1 . . . . . . . . . . . . . . . . . Allies Melted 3 | . . . . . . . . . . . . . . . . 3 . . . Intel | -11 -10 -10 -10 -9 -8 -8 -8 -7 -6 -5 -5 -5 -5 -4 -4 -4 -4 -3 -3 ------- Run | Yrd Mat Min Exi Min Mat Gar Mat Fac Fac Fac Upp Upp Zhi Pro Fac Upp War Pro Res Robot Analysis Total 14 | . 3 . . . 3 . . 1 1 . . . 4 . 2 . . . . Derelict Logs Recovered 11 | . . 2 . 2 . . . . . . 3 1 . 2 . 1 . . . Drone Launches 73 | . . . 1 28 42 . . . . 2 . . . . . . . . . Drone Recoveries 68 | . . . 1 28 38 . . . . 1 . . . . . . . . . Exploration | -11 -10 -10 -10 -9 -8 -8 -8 -7 -6 -5 -5 -5 -5 -4 -4 -4 -4 -3 -3 ------------- Run | Yrd Mat Min Exi Min Mat Gar Mat Fac Fac Fac Upp Upp Zhi Pro Fac Upp War Pro Res Turns Passed 30782 | 264 1328 247 511 1199 2185 467 1582 2780 2330 1685 1420 1535 367 1878 3374 2251 420 1063 3896 Spaces Moved 17609 | 121 943 213 440 635 1251 219 993 1411 1429 1026 909 1024 243 1170 1916 879 263 733 1791 Core 1 | 1 . . . . . . . . . . . . . . . . . . . Treads 11 | . . . . . . . . . . . . . . . . 11 . . . Legs 12781 | . . . . . . . . 1411 1429 1026 909 1024 243 1170 1916 868 263 733 1789 Wheels 4814 | 120 943 213 440 635 1251 219 993 . . . . . . . . . . . . Hover 2 | . . . . . . . . . . . . . . . . . . . 2 Flight . | . . . . . . . . . . . . . . . . . . . . Fastest Speed 50 | 50 80 110 110 110 110 115 115 126 130 120 120 120 120 114 112 160 110 106 106 Average Speed 125 | 89 101 110 110 110 114 125 121 130 130 127 120 123 120 115 118 224 158 120 124 Slowest Speed 710 | 90 110 110 110 155 130 130 130 133 212 190 190 190 120 190 250 250 183 183 710 Overloaded Moves . | . . . . . . . . . . . . . . . . . . . . Propulsion Burnouts . | . . . . . . . . . . . . . . . . . . . . Robots Hopped . | . . . . . . . . . . . . . . . . . . . . Cave-ins Triggered . | . . . . . . . . . . . . . . . . . . . . Teleports 1 | . . . . . . . . . . . . . 1 . . . . . . Exploration Rate (%) 58 | 5 95 30 94 103 89 20 46 30 32 34 86 91 62 92 40 84 21 86 30 Regions Visited 19 Branch Regions 10 Pre-discovered Areas 5 | . . 1 . . . . . . . . 1 . 3 . . . . . . Known Exits Taken 13 | . . . . . 1 . 1 1 1 1 1 1 1 1 1 1 1 1 . Unknown Exits Taken 5 | 1 1 1 1 1 . . . . . . . . . . . . . . . Scrap Searched 15 | . . . . 3 . . . . . . 2 2 . 1 . 3 . 4 . Spaces Dug 136 | . . . . . . . . 14 19 12 7 11 . 8 31 6 1 4 23 Terrain Destroyed 654 | . . . . . . 97 . 24 27 18 13 54 . 30 122 25 1 146 97 Melee 3 | . . . . . . . . 3 . . . . . . . . . . . Projectile 267 | . . . . . . . . 21 25 18 13 23 . 20 70 25 1 8 43 AOE 380 | . . . . . . 97 . . . . . 30 . 10 52 . . 138 53 Terrain Rammed . | . . . . . . . . . . . . . . . . . . . . Walls Destroyed . | . . . . . . . . . . . . . . . . . . . . Machines Disabled . | . . . . . . . . . . . . . . . . . . . . Actions | -11 -10 -10 -10 -9 -8 -8 -8 -7 -6 -5 -5 -5 -5 -4 -4 -4 -4 -3 -3 --------- Run | Yrd Mat Min Exi Min Mat Gar Mat Fac Fac Fac Upp Upp Zhi Pro Fac Upp War Pro Res Total 24657 | 240 1233 223 467 1089 1949 325 1280 2235 1793 1340 1207 1225 303 1666 2743 1110 265 893 3071 Wait 5077 | 79 174 10 18 420 601 31 222 655 227 168 271 106 23 430 508 166 . 98 870 Move 17590 | 120 942 212 439 634 1250 218 992 1410 1428 1025 908 1023 242 1169 1915 878 262 732 1791 Hop . | . . . . . . . . . . . . . . . . . . . . Pick Up 204 | 10 25 . 3 3 20 . 3 20 14 21 1 7 6 8 17 7 . 8 31 Fast Attach 75 | 7 . . . 1 2 . 2 9 2 2 . 3 1 1 15 7 1 3 19 Attach 92 | . 1 . . 1 7 1 . 6 4 9 . 7 3 4 18 2 . 6 23 Detach 37 | . . . . . 1 . . 2 . 2 . 1 2 5 6 1 . 6 11 Swap 365 | . 12 . 3 4 16 9 12 28 39 39 9 22 9 14 58 3 . 8 80 Drop 225 | 2 22 . 4 3 21 . 6 19 21 27 . 10 4 5 28 2 1 10 40 Fire 949 | 22 57 1 . 23 31 49 42 83 58 47 18 46 13 30 170 44 1 22 192 Melee 3 | . . . . . . . . 3 . . . . . . . . . . . Ram 12 | . . . . . . . 1 . . . . . . . . . . . 11 Kick 6 | . . . . . . . . . . . . . . . 3 . . . 3 Crush . | . . . . . . . . . . . . . . . . . . . . Escape Stasis 22 | . . . . . . 17 . . . . . . . . 5 . . . . Rewire . | . . . . . . . . . . . . . . . . . . . . Trap . | . . . . . . . . . . . . . . . . . . . . Miscellaneous . | . . . . . . . . . . . . . . . . . . . . Route ------- -11/Scrapyard -10/Materials (discovered 4 exits: [*Mat x3] / [*Min]) -10/Mines (discovered 2 exits: [*Mat] / *Exi) -10/Exiles (discovered 2 exits: *Min x2) -9/Mines (discovered 2 exits: *Mat x2) -8/Materials (discovered 3 exits: *Fac x2 / Gar) -8/Garrison -8/Materials -7/Factory -6/Factory (discovered 3 exits: *Fac / Low x2) -5/Factory (discovered 2 exits: *Fac / *Upp) -5/Upper Caves -5/Upper Caves (discovered 2 exits: Fac / *Zhi) -5/Zhirov -4/Proximity Caves -4/Factory (discovered 5 exits: *Res x2 / *Upp x2 / Arm) -4/Upper Caves (discovered 2 exits: *Upp / *War) -4/Warlord -3/Proximity Caves -3/Research (discovered 1 exit: *Res) History --------- Turn | Location | Event 22 | -11/Scrapyard | Discovered new exit (range 16) 265 | -11/Scrapyard | Entered Materials 305 | -10/Materials | Build established: Mutant 374 | -10/Materials | Discovered new exit (range 6) 1079 | -10/Materials | Discovered new exit (range 14) 1218 | -10/Materials | Discovered new exit (range 3) 1486 | -10/Materials | Discovered new exit (range 15) 1593 | -10/Materials | Entered Mines 1593 | -10/Mines | Accompanied by 1 ally 1612 | -10/Mines | Learned Materials terminal intel 1643 | -10/Mines | Discovered new exit (range 5) 1689 | -10/Mines | Deemed a non-threat by the Exiles lab entrance 1690 | -10/Mines | Discovered new exit (range 5) 1748 | -10/Mines | Assembled infested the area 1753 | -10/Mines | Assisted by a Guerilla fighting off Assembled 1840 | -10/Mines | Entered Exiles 1868 | -10/Exiles | Met 8R-AWN 1886 | -10/Exiles | Met EX-HEX 1921 | -10/Exiles | Met EX-BIN 1932 | -10/Exiles | Aligned with FarCom system 1933 | -10/Exiles | Given EX-Vault access code 1958 | -10/Exiles | Opened EX-Vault 1964 | -10/Exiles | Found Supersonic Drone Bay 1969 | -10/Exiles | Discovered new exit (range 56) 1975 | -10/Exiles | Discovered new exit (range 70) 1989 | -10/Exiles | Found AWS/Gauss 2019 | -10/Exiles | Warned to stay clear of 0b10 Research branches 2095 | -10/Exiles | Met EX-DEC 2167 | -10/Exiles | Visited The Gauntlet 2351 | -10/Exiles | Stole two prototypes: Supersonic Drone Bay, AWS/Gauss 2351 | -10/Exiles | Entered Mines 2392 | -9/Mines | Learned 2 Materials zone layouts 2427 | -9/Mines | Found the Drone Emporium 2438 | -9/Mines | Found Prototype Device 2438 | -9/Mines | Identified Splice Drone Bay 2536 | -9/Mines | Discovered new exit (range 54) 2544 | -9/Mines | Discovered new exit (range 39) 2830 | -9/Mines | Assisted by bots powering up and referring to "LRC-V3" 2912 | -9/Mines | Excavation squad dispatched 2912 | -9/Mines | A large section of the Mines collapsed 2954 | -9/Mines | Core integrity fell below 50% 3025 | -9/Mines | Learned Materials security intel 3550 | -9/Mines | Entered Materials 3550 | -8/Materials | Accompanied by 3 allies 3550 | -8/Materials | Evolved 4 slots: Propulsion x2, Utility x2 3553 | -8/Materials | Loaded intel: 12 terminal locations 3627 | -8/Materials | Repaired Lgt. Angular Momentum Engine 3749 | -8/Materials | Discovered new exit (range 40) 4210 | -8/Materials | Repaired Assault Rifle 4488 | -8/Materials | Central database locked down 4735 | -8/Materials | Build established: Scavenger-Skirmisher 4759 | -8/Materials | Discovered new exit (range 10) 5094 | -8/Materials | Build established: Skirmisher 5734 | -8/Materials | Identified exit to Garrison 5735 | -8/Materials | Entered Garrison 5753 | -8/Garrison | Triggered checkpoint 5817 | -8/Garrison | Garrison Relay disabled 5979 | -8/Garrison | Installed Relay Interface Framework 6041 | -8/Garrison | Build established: Mutant 6128 | -8/Garrison | Triggered checkpoint 6195 | -8/Garrison | Discovered new exit (range 6) 6200 | -8/Garrison | Identified exit to Materials 6202 | -8/Garrison | Entered Materials 6563 | -8/Materials | Build established: Skirmisher 6935 | -8/Materials | Discovered new exit (range 13) 7033 | -8/Materials | Build established: Mutant 7536 | -8/Materials | Build established: Scavenger-Mutant 7783 | -8/Materials | Identified exit to Factory 7784 | -8/Materials | Entered Factory 7784 | -7/Factory | Evolved 2 slots: Propulsion x1, Utility x1 7786 | -7/Factory | FarCom data flow suspended 8077 | -7/Factory | Build established: Scavenger-Skirmisher 8298 | -7/Factory | Fabricated Lgt. Armored Exoskeleton (x1) 9220 | -7/Factory | Build established: Skirmisher 9580 | -7/Factory | Discovered new exit (range 15) 9613 | -7/Factory | Identified exit to Factory 9667 | -7/Factory | Repaired Reactive Plating 10564 | -7/Factory | Entered another Factory area 10564 | -6/Factory | Evolved 2 slots: Power x1, Utility x1 11510 | -6/Factory | Repaired Titanium Leg 11768 | -6/Factory | Garrison activated, responded to threat 12221 | -6/Factory | Found Hvy. Insulated Plating 12428 | -6/Factory | Identified exit to Lower Caves 12443 | -6/Factory | Discovered new exit (range 16) 12495 | -6/Factory | Identified exit to Factory 12894 | -6/Factory | Entered another Factory area 12894 | -5/Factory | Evolved 2 slots: Utility x2 13079 | -5/Factory | Repaired Hvy. Insulated Plating 13193 | -5/Factory | Build established: Hacker-Skirmisher 13293 | -5/Factory | Discovered new exit (range 20) 13333 | -5/Factory | Identified exit to Upper Caves 13410 | -5/Factory | Discovered new exit (range 5) 13414 | -5/Factory | Identified exit to Factory 13671 | -5/Factory | Repaired Imp. Medium Armor Plating 13937 | -5/Factory | Spotted B-75 Beast 14520 | -5/Factory | Local machine network offline 14579 | -5/Factory | Entered Upper Caves 14581 | -5/Upper Caves | Attracted the attention of an 0b10 checkpoint 14836 | -5/Upper Caves | Learned location of Warlord (-4) 14848 | -5/Upper Caves | Learned Factory security intel 14892 | -5/Upper Caves | Encountered a Warlord checkpoint 15069 | -5/Upper Caves | Learned location of 1 exit from Factory 15812 | -5/Upper Caves | Discovered new exit (range 12) 15996 | -5/Upper Caves | Identified exit to Upper Caves 15999 | -5/Upper Caves | Entered another Upper Caves area 16005 | -5/Upper Caves | Learned Factory terminal intel 16249 | -5/Upper Caves | Discovered exit to Factory (range 12) 17440 | -5/Upper Caves | Discovered new exit (range 15) 17442 | -5/Upper Caves | Spotted UP-ZJ0(f) 17442 | -5/Upper Caves | Spotted 2J-9B5(f) 17443 | -5/Upper Caves | Encountered a Master Thief 17443 | -5/Upper Caves | Encountered a Master Thief 17444 | -5/Upper Caves | AWS/Gauss stolen by Master Thief 17448 | -5/Upper Caves | Railgun stolen by Master Thief 17532 | -5/Upper Caves | Identified exit to Zhirov 17534 | -5/Upper Caves | Entered Zhirov 17535 | -5/Zhirov | Discovered new exit (range 3) 17580 | -5/Zhirov | Learned location of Quarantine (-2) 17580 | -5/Zhirov | Learned location of Testing (-3) 17580 | -5/Zhirov | Learned location of Command (-1) 17773 | -5/Zhirov | Found Alien Artifact 17788 | -5/Zhirov | Found Alien Artifact 17794 | -5/Zhirov | Identified Transdimensional Reconstructor 17794 | -5/Zhirov | Warped through subspace 17834 | -5/Zhirov | Build established: Hacker-Mutant 17895 | -5/Zhirov | Identified Integrated Reactor 17895 | -5/Zhirov | Installed Integrated Reactor, increased core energy generation (+10) 17900 | -5/Zhirov | Identified exit to Proximity Caves 17901 | -5/Zhirov | Entered Proximity Caves 18138 | -4/Proximity Caves | Learned Research security intel 18220 | -4/Proximity Caves | Found Prototype Launcher 18220 | -4/Proximity Caves | Identified Hellfire Missile Launcher 18266 | -4/Proximity Caves | Build established: Hacker-Skirmisher 18325 | -4/Proximity Caves | Learned Research emergency access door positions 19699 | -4/Proximity Caves | Discovered exit to Factory (range 11) 19779 | -4/Proximity Caves | Entered Factory 19779 | -4/Factory | Evolved 2 slots: Propulsion x1, Utility x1 19780 | -4/Factory | Identified exit to Upper Caves 19782 | -4/Factory | Loaded intel: 26 terminal locations 20049 | -4/Factory | Identified exit to Armory 20294 | -4/Factory | Garrison activated, responded to threat 20420 | -4/Factory | Found Quantum Capacitor 20449 | -4/Factory | Repaired Hvy. Insulated Plating 21649 | -4/Factory | Discovered new exit (range 14) 21779 | -4/Factory | Discovered new exit (range 16) 22592 | -4/Factory | Fabricated Adv. Hacking Suite (x1) 22665 | -4/Factory | Build established: Hacker-Mutant 22741 | -4/Factory | Destroyed 7 combat bots 22794 | -4/Factory | Lost 3 parts (1n1u1w) 22999 | -4/Factory | Repaired Exp. Myomer Leg? 23029 | -4/Factory | First assault squad dispatched 23089 | -4/Factory | Lost 10 parts (2p4n1u3w) 23153 | -4/Factory | Entered Upper Caves 23727 | -4/Upper Caves | Learned 8 Research zone layouts 24769 | -4/Upper Caves | Encountered a Warlord checkpoint 24923 | -4/Upper Caves | Murdered 4 allies 25109 | -4/Upper Caves | Discovered new exit (range 15) 25277 | -4/Upper Caves | A Derelict revealed a hidden shortcut to "reach the base" 25278 | -4/Upper Caves | Identified exit to Warlord 25340 | -4/Upper Caves | Identified exit to Upper Caves 25404 | -4/Upper Caves | Entered Warlord 25458 | -4/Warlord | System corruption cleaned by Quarantine Array 25557 | -4/Warlord | Discovered new exit (range 8) 25568 | -4/Warlord | Identified exit to Proximity Caves 25621 | -4/Warlord | Opened side exit 25641 | -4/Warlord | RIF detected upon attempting to enter Warlord's base 25641 | -4/Warlord | Attacked by Warlord forces 25824 | -4/Warlord | Entered Proximity Caves 26406 | -3/Proximity Caves | Build established: Hacker-Skirmisher 26688 | -3/Proximity Caves | Discovered new exit (range 8) 26694 | -3/Proximity Caves | Identified exit to Research 26887 | -3/Proximity Caves | Entered Research 26887 | -3/Research | Evolved 2 slots: Utility x2 27515 | -3/Research | Repaired Exp. Myomer Leg 28303 | -3/Research | Lost 3 parts (2n1u) 28938 | -3/Research | Lost 4 parts (2n2u) 29206 | -3/Research | Build established: Scavenger-Skirmisher 29559 | -3/Research | Build established: Scavenger-Mutant 29713 | -3/Research | System corruption reached 10% 29903 | -3/Research | Discovered new exit (range 14) 29967 | -3/Research | Fabricated Prc. Energy Filter? 30013 | -3/Research | Build established: Scavenger-Skirmisher 30282 | -3/Research | Found Prototype Processor 30282 | -3/Research | Identified Exp. Target Analyzer 30621 | -3/Research | Identified exit to Research 30721 | -3/Research | System corruption reached 30% 30755 | -3/Research | Core integrity fell below 50% 30778 | -3/Research | Core integrity fell below 20% 30783 | -3/Research | Destroyed by H-77 Assassin with High-powered Shotgun Last Messages --------------- 30773_ Adv. Terrain Scanner crushed and broken. 30773_ Nova Cannon crushed and broken. 30773_ R-10 Processor collects Point Defense Array. 30774_ R-10 Processor collects Adv. Power Amplifier. 30775_ Slammed into P-80 Master. 30775_ Destabilizing: System corrupted (+1). 30776_ Slammed into P-80 Master. 30776_ R-10 Processor collects Exp. Matter Compressor. 30776_ R-10 Processor collects Prc. Energy Filter. 30777_ Slug penetrates Wall. 30777_ Slammed into P-80 Master. 30777_ Adv. Signal Interpreter destroyed. 30778_ Slammed into G-67 Veteran. 30778_ Adv. Terrain Scan Processor destroyed. 30779_ Slammed into G-67 Veteran. 30781_ Destabilizing: System corrupted (+1). 30781_ Penetrated by Slug. 30782_ Slammed into H-77 Assassin. 30782_ Adv. Target Analyzer broken. 30782_ Destabilizing: Short circuit. Map ----- +----------------------------------------------------+ | ???? ##?# # # !""" # | | ???? #### !! # ""G"" # |""" # | | ??? ##?# !! # " " "######### | | ???? #### ! + " " ########### | | ?? ?? ##?# ######## # ########### | | ? ? #### # # # ########### | | ??##### # # ####### | | ??? ? ####### / ################# | | ???###### # ################# | | ? ####### # ################# | | #?## #######! # ################# | | #?## ? #?## # # ################# | | ???# ??### + # """############## | | ? ?# #### # # """############## | | ? #?? #### ######## !""############## | | ? ? ?? #### ######## F""################## | | ???? ### !"""###### """"" ### | | ? ?# ? ### ######### """"" ### | | ?? # ? ### ######### """"" # | | ? ?+? ??### ######### # | | # ### %####################### # | | ?? # #?# ###################### # | | ?### ### ##### ############ # | | ##### ############ # | | ^ k mRR##################+### | | k k Rh@hgggphRkRmR | | % ##### RR########% | | #################### ######## | | ???#?#?#??###?#?###############?## | | ??##?##???#??###??#?###???######## ######+##### | | ??????#####???#########?########## ### # | | ##???###??#??#?######?##?######### ?## # | | ##?##?###??#???###?#######?####### ? #?# # | | ???##?###?#####?##?#?###?####?###? ???#?# # | | ?#####??###?###?#?#####?###?####?#? ???## " " # | | ??##???##?#?##?#?##########?#?##????? ### "T" # | | ??#?#?????##?#??########???#???#?###? ### """ # | | ??#?##?#??######??####?#?#?#?????#### ??# # | | ?#??#?###???##?????##?#????????#??##???## ! # | | ??#?#?#?##?#??###??###???#??#????#?## ##########+# | | ????#????#????####???????????#???###? ? """?"? | | ??????###?#??#####??????##??????? ? #?? ? ??""" | | ?????###?########?#??#????????? ? ?? # ? ?"""? ? | | ???????????????????#??????#?#????? ???#?? ?? ?? | | ???????????????#?????????#???? ?????#???????? ? | | ???????????????????????#?????? ? ?? #?# ?? ? | | ??????????????????????????????????????# ? | | ???????????????????????????????????????#??####??#? | | ??????????????????????????????? ??????? ? ? ?? ? | | ????????????????????????????????????????? ??? ? ?? | +----------------------------------------------------+ Best States ------------- Heat Dissipation 103 Energy Generation 54 Energy Capacity 565 Matter Stores 418 Matter Capacity 800 Sight Range 16 Robot Scan Range 18 Terrain Scan Range 20 Terrain Scan Density 210 Jamming Range 16 Cloak Strength 2 Power Amplification 30 Corruption Containment 12 Armor Coverage 600 Resistance: KI 30 Resistance: TH 30 Resistance: EM 30 Utility Shielding 66 Weapon Cycling 20 Evasion (%) 55 Targeting Accuracy 8 Target Analysis 8 Recoil Reduction 3 Particle Charging 30 Kinecelleration 40 Offensive Hacking 50 Defensive Hacking 11 Item Schematics ----------------- Hcp. Storage Unit | -10/Materials | Hacked Hacking Suite | -8/Materials | Hacked Carbon-fiber Leg | -8/Materials | Scanalyzed Imp. Utility Shielding | -8/Materials | Hacked Imp. Sensor Array | -8/Materials | Scanalyzed Reactive Plating | -8/Materials | Scanalyzed Imp. Terrain Scanner | -8/Materials | Scanalyzed Adv. EMP Blaster | -8/Materials | Scanalyzed Lgt. Angular Momentum Engine | -8/Materials | Scanalyzed Med. Reactive Plating | -6/Factory | Scanalyzed Assault Drone Bay | -5/Zhirov | Free Exp. Heat Sink | -5/Zhirov | Free Exp. Optical Array | -5/Zhirov | Free Imp. Arc Thrower | -5/Zhirov | Free Prc. Energy Filter | -4/Factory | Hacked Adv. Hacking Suite | -4/Factory | Hacked Adv. Power Amplifier | -3/Research | Scanalyzed Exp. Myomer Leg | -3/Research | Scanalyzed Robot Schematics ------------------ None Fabricated ------------ Lgt. Armored Exoskeleton | x1 | -7/Factory | Preloaded Adv. Hacking Suite | x1 | -4/Factory Prc. Energy Filter | x1 | -3/Research Alien Tech Used ----------------- Transdimensional Reconstructor Integrated Reactor Achievements -------------- Factory Defaults Challenges ------------ None Game ------ Seed ParticleScrapClaymores Manual? 0 Play Time 04:59:58 Cumulative 254.3 hours Start 2024.10.03 @ 21:53:45 End 2024.10.04 @ 22:13:05 Sessions 5 Manual Loads 0 Difficulty Rogue Special Mode None Game No. 133 Rogue 133 Adventurer 0 Explorer 0 Win Type - Total 4 Types 4/0/0/0/0/0/0/0/0 Lore% 40 Gallery% 64 Achievement% 57 Wizard Run 0 Options --------- Layout 0 ASCII 0 Keyboard 1 Movement Vi Keybinds 0 Fullscreen 2 Font 18/SmallcapsGlow Map View 76x50 Zoom Use 0% Tactical HUD 1 Map Filters NONE Filters NONE Steam 1 RUN: 00ad9827-c61c-4936-bcf9-aef99805da70